fUSD/lending_fUSD_20260112
["ID","MTS","AMOUNT","RATE_DAILY","PERIOD"]
[401425953,1768203062303,500.0,0.00012814,2]
[401425954,1768203062351,500.0,0.00012814,2]
[401425955,1768203062395,500.0,0.00012814,2]
[401425956,1768203062440,500.0,0.00012814,2]
[401425957,1768203062485,500.0,0.00012814,2]
[401425958,1768203062536,500.0,0.00012814,2]
[401425959,1768203062584,500.0,0.00012814,2]
[401425960,1768203062630,500.0,0.00012814,2]
[401425961,1768203062673,500.0,0.00012814,2]
[401425962,1768203062720,500.0,0.00012814,2]
[401425963,1768203062814,500.0,0.00012814,2]
[401425964,1768203062865,500.0,0.00012814,2]
[401425965,1768203062924,587.35782963,0.00012814,2]
[401425966,1768203067108,9168.01108276,0.000202,30]
[401425967,1768203067931,500.0,0.00012715,2]
[401425968,1768203071759,500.0,0.00012714,2]
[401425969,1768203071808,611.15048074,0.00012714,2]
[401425970,1768203073935,1682.4955,0.00012715,2]
[401425971,1768203094707,19.01618963,0.00012714,2]
[401425972,1768203094735,515.43340298,0.00012714,2]
[401425973,1768203096063,542.77065189,0.00012714,2]
[401425974,1768203098727,8941.80594513,0.00012715,2]
[401425975,1768203098759,10000.01,0.00012715,2]
[401425976,1768203098791,10000.01,0.00012715,2]
[401425977,1768203098821,10000.01,0.00012715,2]
[401425978,1768203098852,10000.01,0.00012715,2]
[401425979,1768203098882,10000.01,0.00012715,2]
[401425981,1768203140652,-500.0,0.00012714,2]
[401425982,1768203140678,-16.64018349,0.00012714,2]
[401425983,1768203144523,-225.27615223,0.00012714,2]
[401425984,1768203149791,-53.06651456,0.00012714,2]
[401425985,1768203149815,-163.2149018,0.00012714,2]
[401425986,1768203149839,-19.87171546,0.00012714,2]
[401425987,1768203157960,-215.56679287,0.00012714,2]
[401425988,1768203159882,-64.56149167,0.00012714,2]
[401425989,1768203159913,-183.26959751,0.00012715,2]
[401425990,1768203166370,-526.3855839,0.00012715,2]
[401425991,1768203168479,-257.17570933,0.00012715,2]
[401425992,1768203174112,-191.63939808,0.00012715,2]
[401425993,1768203190662,800.0,0.000129,4]
[401425994,1768203216417,-154.87775072,0.00012613,2]
[401425995,1768203216440,-81.58418348,0.00012714,2]
[401425996,1768203222926,-222.37526708,0.00012714,2]
[401425997,1768203222967,-20.23134149,0.00012714,2]
[401425998,1768203230718,-500.0,0.00012615,2]
[401425999,1768203230742,-91.84340517,0.00012615,2]
[401426000,1768203233248,-214.7707599,0.00012615,2]
[401426001,1768203238807,-432.38288912,0.00012615,2]
[401426002,1768203241309,-282.63596466,0.00012615,2]
[401426003,1768203244394,-300.0,0.00012614,2]
[401426004,1768203245275,-172.36715775,0.00012615,2]
[401426005,1768203248339,-247.51841234,0.00012615,2]
[401426006,1768203250619,-948.14402246,0.00012615,2]
[401426007,1768203257617,-306.68354983,0.00012615,2]
[401426008,1768203261774,-263.10583184,0.00012615,2]
[401426009,1768203264555,-183.70388876,0.00012615,2]
[401426010,1768203265531,1138.0,0.00014,6]
[401426011,1768203266097,-309.3320007,0.00012615,2]
[401426012,1768203268747,-1610.10775421,0.00012615,2]
[401426013,1768203268927,-10000.01,0.00012615,2]
[401426014,1768203269092,-10000.01,0.00012615,2]
[401426015,1768203269261,-1159.69177167,0.00012615,2]
[401426016,1768203269288,-7680.62645666,0.00012615,2]
[401426017,1768203269413,-192.77249302,0.00012615,2]
[401426018,1768203271491,-107.22750698,0.00012615,2]
[401426019,1768203271519,-49.44989669,0.00012615,2]
[401426020,1768203274888,-162.68115368,0.00012615,2]
[401426021,1768203278288,-264.0,0.00012615,2]
[401426022,1768203280382,-275.73461415,0.00012615,2]
[401426023,1768203281490,1825.4,0.00011607,2]
[401426024,1768203284411,-4195.23585637,0.00012615,2]
[401426025,1768203284439,-1609.53828726,0.00012615,2]
[401426026,1768203284579,-226.10409216,0.00012615,2]
[401426027,1768203284612,-300.0,0.00012674,2]
[401426028,1768203284645,-500.0,0.00012713,2]
[401426029,1768203284687,-541.84033244,0.00012714,2]
[401426030,1768203284725,-562.07167393,0.00012714,2]
[401426031,1768203284761,-562.07167393,0.00012714,2]
[401426032,1768203284797,-562.07167393,0.00012714,2]
[401426033,1768203284835,-562.07167393,0.00012714,2]
[401426034,1768203284872,-562.07167393,0.00012714,2]
[401426035,1768203284909,-562.07167393,0.00012714,2]
[401426036,1768203286024,-20.23134149,0.00012714,2]
[401426037,1768203286044,-119.26106364,0.00012714,2]
[401426038,1768203286088,-422.5792688,0.00012714,2]
[401426039,1768203286125,-562.07167393,0.00012714,2]
[401426040,1768203286163,-562.07167393,0.00012714,2]
[401426041,1768203286198,-562.07167393,0.00012714,2]
[401426042,1768203286236,-562.07167393,0.00012714,2]
[401426043,1768203286273,-562.07167393,0.00012714,2]
[401426044,1768203286308,-562.07167393,0.00012714,2]
[401426045,1768203286342,-562.07167393,0.00012714,2]
[401426046,1768203286375,-562.07167393,0.00012714,2]
[401426047,1768203286586,-161.70467952,0.00012714,2]
[401426048,1768203305724,-193.0,0.00012649,2]
[401426049,1768203310499,-643.277192,0.00012649,2]
[401426050,1768203310535,-1200.0,0.00012713,2]
[401426051,1768203310569,-300.0,0.00012713,2]
[401426052,1768203310609,-400.36699441,0.00012714,2]
[401426053,1768203310649,-562.07167393,0.00012714,2]
[401426054,1768203310687,-562.07167393,0.00012714,2]
[401426055,1768203310727,-562.07167393,0.00012714,2]
[401426056,1768203310768,-562.07167393,0.00012714,2]
[401426057,1768203310890,-562.07167393,0.00012714,2]
[401426058,1768203310930,-562.07167393,0.00012714,2]
[401426059,1768203310968,-562.07167393,0.00012714,2]
[401426060,1768203311009,-562.07167393,0.00012714,2]
[401426061,1768203311048,-562.07167393,0.00012714,2]
[401426062,1768203311088,-562.07167393,0.00012714,2]
[401426063,1768203311127,-562.07167393,0.00012714,2]
[401426064,1768203311170,-562.07167393,0.00012714,2]
[401426065,1768203311215,-444.79154319,0.00012714,2]
[401426066,1768203311320,-117.28013074,0.00012714,2]
[401426067,1768203311363,-562.07167393,0.00012714,2]
[401426068,1768203311406,-562.07167393,0.00012714,2]
[401426069,1768203311445,-562.07167393,0.00012714,2]
[401426070,1768203311484,-562.07167393,0.00012714,2]
[401426071,1768203311523,-562.07167393,0.00012714,2]
[401426072,1768203311561,-562.07167393,0.00012714,2]
[401426073,1768203311599,-562.07167393,0.00012714,2]
[401426074,1768203311635,-562.07167393,0.00012714,2]
[401426075,1768203311672,-210.23128171,0.00012714,2]
[401426076,1768203312202,-351.84039222,0.00012714,2]
[401426077,1768203312247,-562.07167393,0.00012714,2]
[401426078,1768203312285,-562.07167393,0.00012714,2]
[401426079,1768203312323,-562.07167393,0.00012714,2]
[401426080,1768203312362,-562.07167393,0.00012714,2]
[401426081,1768203312400,-562.07167393,0.00012714,2]
[401426082,1768203312438,-562.07167393,0.00012714,2]
[401426083,1768203312479,-562.07167393,0.00012714,2]
[401426084,1768203312513,-352.49202182,0.00012714,2]
[401426085,1768203312549,-160.27006297,0.00012714,2]
[401426086,1768203312790,-401.80161096,0.00012714,2]
[401426087,1768203312828,-567.55530001,0.00012714,2]
[401426088,1768203312866,-567.55530001,0.00012714,2]
[401426089,1768203312903,-567.55530001,0.00012714,2]
[401426090,1768203312940,-567.55530001,0.00012714,2]
[401426091,1768203312979,-567.55530001,0.00012714,2]
[401426092,1768203313015,-567.55530001,0.00012714,2]
[401426093,1768203313052,-567.55530001,0.00012714,2]
[401426094,1768203313088,-567.55530001,0.00012714,2]
[401426095,1768203313806,-162.9270218,0.00012714,2]
[401426096,1768203313825,-404.62827821,0.00012714,2]
[401426097,1768203313836,-162.9270218,0.00012714,2]
[401426098,1768203313855,-404.62827821,0.00012714,2]
[401426099,1768203313865,-162.9270218,0.00012714,2]
[401426100,1768203313883,-115.52197792,0.00012714,2]
[401426101,1768203313956,-179.84290307,0.00012613,2]
[401426102,1768203313982,-120.15709693,0.00012713,2]
[401426103,1768203320758,-182.51751227,0.00012615,2]
[401426104,1768203322894,-300.0,0.00012615,2]
[401426105,1768203325293,-300.0,0.00012615,2]
[401426106,1768203345317,-63.26543898,0.00012615,2]
[401426107,1768203345348,-1146.55290307,0.00012713,2]
[401426108,1768203345380,-500.0,0.00012713,2]
[401426109,1768203345417,-289.10630029,0.00012714,2]
[401426110,1768203345455,-567.55530001,0.00012714,2]
[401426111,1768203345494,-567.55530001,0.00012714,2]
[401426112,1768203345531,-567.55530001,0.00012714,2]
[401426113,1768203345567,-567.55530001,0.00012714,2]
[401426114,1768203345605,-567.55530001,0.00012714,2]
[401426115,1768203345737,-567.55530001,0.00012714,2]
[401426116,1768203345771,-567.55530001,0.00012714,2]
[401426117,1768203345809,-567.55530001,0.00012714,2]
[401426118,1768203345844,-567.55530001,0.00012714,2]
[401426119,1768203345880,-567.55530001,0.00012714,2]
[401426120,1768203345919,-567.55530001,0.00012714,2]
[401426121,1768203345954,-567.55530001,0.00012714,2]
[401426122,1768203345989,-567.55530001,0.00012714,2]
[401426123,1768203346026,-351.56989983,0.00012714,2]
[401426124,1768203346292,-215.98540018,0.00012714,2]
[401426125,1768203346302,-351.56989983,0.00012714,2]
[401426127,1768203365711,-186.40952326,0.00012615,2]
[401426128,1768203367655,-186.5513693,0.00012615,2]
[401426129,1768203368247,-619.91192354,0.00012615,2]
[401426130,1768203368283,-8760.18615292,0.00012615,2]
[401426131,1768203368706,-300.0,0.00012713,2]
[401426132,1768203368742,-150.0,0.00012713,2]
[401426133,1768203368786,-215.98540018,0.00012714,2]
[401426134,1768203368828,-567.55530001,0.00012714,2]
[401426135,1768203368869,-567.55530001,0.00012714,2]
[401426136,1768203368903,-500.0,0.00012714,2]
[401426137,1768203368941,-500.0,0.00012714,2]
[401426138,1768203368982,-410.80276006,0.00012714,2]
[401426139,1768203369026,-1658.13591384,0.00012714,2]
[401426140,1768203369272,-259.9406518,0.00012714,2]
[401426141,1768203369674,-658.43801417,0.00012714,2]
[401426142,1768203380654,-168.60109327,0.00012515,2]
[401426143,1768203383273,-258.04602226,0.00012515,2]
[401426144,1768203404483,-73.35288447,0.00012515,2]
[401426145,1768203404519,-739.75724787,0.00012714,2]
[401426146,1768203404554,-1658.13591384,0.00012714,2]
[401426147,1768203404590,-1658.13591384,0.00012714,2]
[401426148,1768203404628,-83.11016612,0.00012714,2]
[401426149,1768203404721,-1575.02574772,0.00012714,2]
[401426150,1768203404760,-318.23250692,0.00012714,2]
[401426151,1768203404796,-500.0,0.00012714,2]
[401426152,1768203404828,-195.0,0.00012714,2]
[401426153,1768203404859,-300.0,0.00012714,2]
[401426154,1768203404890,-250.0,0.00012714,2]
[401426155,1768203404921,-233.0,0.00012714,2]
[401426156,1768203410784,-246.5644123,0.00012715,2]
[401426157,1768203413606,-214.65359386,0.00012715,2]
[401426158,1768203415313,150.73606144,0.00012615,2]
[401426159,1768203416217,-301.0211071,0.00012715,2]
[401426160,1768203417703,-173.41473106,0.00012715,2]
[401426161,1768203420494,-151.80254426,0.00012715,2]
[401426162,1768203422095,-335.98824633,0.00012715,2]
[401426163,1768203423661,-286.05719876,0.00012715,2]
[401426164,1768203427324,-159.20714182,0.00012715,2]
[401426165,1768203429007,-166.37816147,0.00012715,2]
[401426166,1768203432723,-267.17649534,0.00012715,2]
[401426167,1768203437161,1788.522725,0.0001265,2]
[401426168,1768203437246,-250.0,0.00012715,2]
[401426169,1768203441574,-477.18286113,0.00012715,2]
[401426170,1768203444467,-221.1910972,0.00012715,2]
[401426171,1768203446046,-155.04733483,0.00012715,2]
[401426172,1768203448010,-300.0,0.00012715,2]
[401426173,1768203451045,267.176495,0.0001265,2]
[401426174,1768203452441,-233.31822963,0.00012715,2]
[401426175,1768203454571,-300.01319839,0.00012715,2]
[401426176,1768203456902,500.0,0.00012714,2]
[401426177,1768203456957,350.15987542,0.00012714,2]
[401426178,1768203457136,-301.98869862,0.00012715,2]
[401426179,1768203462788,-300.0,0.00012715,2]
[401426180,1768203464941,-222.0,0.00012715,2]
[401426181,1768203466479,-173.27926553,0.00012715,2]
[401426182,1768203470061,-235.87234156,0.00012715,2]
[401426183,1768203473324,-381.44436797,0.00012715,2]
[401426184,1768203476826,-197.03,0.00012715,2]
[401426185,1768203480207,-686.33339307,0.00012715,2]
[401426186,1768203481325,300.0,0.00012714,2]
[401426187,1768203486461,-668.29529752,0.00012715,2]
[401426188,1768203488668,-162.1637805,0.00012715,2]
[401426189,1768203492559,-293.03618238,0.00012715,2]
[401426190,1768203496055,1200.0,0.00012714,2]
[401426191,1768203496754,-206.96381745,0.00012715,2]
[401426192,1768203501857,-237.93014248,0.00012715,2]
[401426193,1768203503169,-211.45476909,0.00012715,2]
[401426194,1768203504472,-332.09261751,0.00012715,2]
[401426195,1768203525800,617.316709,0.0001265,2]
[401426196,1768203541837,300.0,0.00012714,2]
[401426197,1768203542466,150.0,0.00012714,2]
[401426198,1768203543025,783.6331203,0.00012615,2]
[401426199,1768203543055,1909.83962694,0.00012615,2]
[401426200,1768203556064,150.73606142,0.00012615,2]
[401426201,1768203583568,2500.0,0.00012615,2]
[401426202,1768203584145,1934.81936586,0.00012697,2]
[401426203,1768203601252,300.0,0.00012714,2]
[401426204,1768203601433,300.0,0.00012714,2]
[401426205,1768203601763,1200.0,0.00012714,2]
[401426206,1768203613148,806.17741865,0.00012615,2]
[401426207,1768203613698,898.43752713,0.00012615,2]
[401426208,1768203613727,9856.78291823,0.00012615,2]
[401426209,1768203629731,143.22708177,0.00012714,2]
[401426210,1768203661745,3283.12574064,6.613e-05,2]
[401426211,1768203661770,845.31425936,6.613e-05,2]
[401426212,1768203661954,4128.44,6.948e-05,2]
[401426213,1768203662152,296.16148128,7.282e-05,2]
[401426214,1768203662176,3832.27851872,7.282e-05,2]
[401426215,1768203662364,1437.63722192,7.616e-05,2]
[401426216,1768203662387,2690.80277808,7.616e-05,2]
[401426217,1768203662896,2579.11296256,7.951e-05,2]
[401426218,1768203662920,1549.32703744,7.951e-05,2]
[401426219,1768203662957,3720.5887032,8.285e-05,2]
[401426220,1768203662980,407.8512968,8.285e-05,2]
[401426221,1768203663046,4128.44,8.62e-05,2]
[401426222,1768203663173,733.62444384,8.954e-05,2]
[401426223,1768203663198,3394.81555616,8.954e-05,2]
[401426224,1768203663374,1875.10018448,9.289e-05,2]
[401426225,1768203663398,2253.33981552,9.289e-05,2]
[401426226,1768203663741,3016.57592512,9.623e-05,2]
[401426227,1768203663766,1111.86407488,9.623e-05,2]
[401426228,1768203663948,4128.44,9.957e-05,2]
[401426229,1768203664683,29.61166576,0.00010292,2]
[401426230,1768203664707,4098.82833424,0.00010292,2]
[401426231,1768203664765,1171.0874064,0.00010626,2]
[401426232,1768203665642,-157.237953,0.00010626,2]
[401426233,1768203667285,-156.73524702,0.00010626,2]
[401426234,1768203668705,-327.02019234,0.00010626,2]
[401426235,1768203671479,-413.62305256,0.00010626,2]
[401426236,1768203673235,-167.99761408,0.00010626,2]
[401426237,1768203675359,-178.751655,0.00010626,2]
[401426238,1768203679802,-273.50705729,0.00010626,2]
[401426239,1768203682427,-404.2873866,0.00010626,2]
[401426240,1768203684899,-177.92236706,0.00010626,2]
[401426241,1768203687271,-189.83615086,0.00010626,2]
[401426242,1768203689625,-204.00360972,0.00010626,2]
[401426243,1768203691682,-204.00360972,0.00010626,2]
[401426244,1768203693992,-102.42669835,0.00010626,2]
[401426245,1768203694026,-131.54378739,0.00010961,2]
[401426246,1768203697773,-332.86951757,0.00010961,2]
[401426247,1768203701402,-344.27983911,0.00010961,2]
[401426248,1768203705047,-228.69865161,0.00010961,2]
[401426249,1768203706618,-342.36356142,0.00010961,2]
[401426250,1768203709252,-243.10374919,0.00010961,2]
[401426251,1768203714771,-300.0,0.00010961,2]
[401426252,1768203717346,-237.39152519,0.00010961,2]
[401426253,1768203719095,-204.30929403,0.00010961,2]
[401426254,1768203721029,-419.28007477,0.00010961,2]
[401426255,1768203722561,-279.09007143,0.00010961,2]
[401426256,1768203724075,-166.12675303,0.00010961,2]
[401426257,1768203725583,-153.99351081,0.00010961,2]
[401426258,1768203728197,-181.38472114,0.00010961,2]
[401426259,1768203730800,-167.16832833,0.00010961,2]
[401426260,1768203733112,-351.82534366,0.00010961,2]
[401426261,1768203738551,-45.01127132,0.00010961,2]
[401426262,1768203738581,-143.42391227,0.00011128,2]
[401426263,1768203742311,-51.57608773,0.00011128,2]
[401426264,1768203742336,-357.69029237,0.00011295,2]
[401426265,1768203747641,-302.0,0.00011295,2]
[401426266,1768203749689,-3468.74970763,0.00011295,2]
[401426267,1768203749722,-300.0,0.00011628,2]
[401426268,1768203749762,-300.0,0.00011628,2]
[401426269,1768203750482,-414.13281754,0.00011629,2]
[401426270,1768203761872,-151.02608054,0.00011629,2]
[401426271,1768203763328,-269.54953398,0.00011629,2]
[401426272,1768203765601,-152.68088658,0.00011629,2]
[401426273,1768203830761,-302.94244093,0.00011048,2]
[401426274,1768203832342,-433.95167045,0.00011048,2]
[401426275,1768203834824,-195.8197408,0.00011048,2]
[401426276,1768203837755,-233.47671862,0.00011048,2]
[401426277,1768203839999,-191.84457947,0.00011048,2]
[401426278,1768203843527,-200.75092673,0.00011048,2]
[401426279,1768203847174,-431.31728174,0.00011048,2]
[401426280,1768203848722,-169.69853594,0.00011048,2]
[401426281,1768203850768,-109.22477112,0.00011048,2]
[401426282,1768203850791,-145.8128446,0.00011571,2]
[401426283,1768203852374,-214.45326535,0.00011571,2]
[401426284,1768203854495,-267.34057516,0.00011571,2]
[401426285,1768203856012,-169.75464637,0.00011571,2]
[401426286,1768203857520,-302.00082719,0.00011571,2]
[401426287,1768203859569,-160.49509769,0.00011571,2]
[401426288,1768203862435,-264.0,0.00011571,2]
[401426289,1768203865081,-312.30184415,0.00011571,2]
[401426290,1768203867131,-152.74964676,0.00011571,2]
[401426291,1768203868828,-341.16755733,0.00011571,2]
[401426292,1768203870591,-166.13258014,0.00011571,2]
[401426293,1768203871766,-226.62461992,0.00011529,2]
[401426294,1768203873487,-241.64630265,0.00011529,2]
[401426295,1768203873510,-33.36148849,0.00011571,2]
[401426296,1768203875256,-195.20792808,0.00011571,2]
[401426297,1768203877589,-364.79116376,0.00011571,2]
[401426298,1768203879154,-181.29810512,0.00011571,2]
[401426299,1768203881926,-462.74262548,0.00011571,2]
[401426300,1768203914828,-111.00959733,0.00011571,2]
[401426301,1768203914861,-313.96701007,0.000116,2]
[401426302,1768203914893,-3141.05068136,0.00011629,2]
[401426303,1768203914925,-195.0,0.00011689,2]
[401426304,1768203914961,-468.27092257,0.00011863,2]
[401426305,1768203914999,-341.41357734,0.00011963,2]
[401426306,1768203915208,-858.58642266,0.00011963,2]
[401426307,1768203915239,-1200.0,0.00011963,2]
[401426308,1768203915271,-300.0,0.00011963,2]
[401426309,1768203915303,-1154.39715468,0.00011964,2]
[401426310,1768203915357,-2974.04284532,0.00011964,2]
[401426311,1768203915393,-195.0,0.00012057,2]
[401426312,1768203915427,-193.0,0.00012057,2]
[401426313,1768203915459,-300.0,0.00012153,2]
[401426314,1768203915492,-300.0,0.00012153,2]
[401426315,1768203915525,-468.27092257,0.00012197,2]
[401426316,1768203915558,-150.0,0.00012295,2]
[401426317,1768203915591,-156.75586223,0.00012296,2]
[401426318,1768203915628,-25.87073976,0.00012296,2]
[401426319,1768203915766,-474.12926024,0.00012296,2]
[401426320,1768203915804,-500.0,0.00012296,2]
[401426321,1768203915845,-500.0,0.00012296,2]
[401426322,1768203915883,-500.0,0.00012296,2]
[401426323,1768203915920,-500.0,0.00012296,2]
[401426324,1768203915958,-500.0,0.00012296,2]
[401426325,1768203915995,-500.0,0.00012296,2]
[401426326,1768203916032,-500.0,0.00012296,2]
[401426327,1768203916068,-500.0,0.00012296,2]
[401426328,1768203916108,-500.0,0.00012296,2]
[401426329,1768203916322,-500.0,0.00012296,2]
[401426330,1768203916365,-500.0,0.00012296,2]
[401426331,1768203916405,-500.0,0.00012296,2]
[401426332,1768203916444,-500.0,0.00012296,2]
[401426333,1768203916484,-500.0,0.00012296,2]
[401426334,1768203916523,-500.0,0.00012296,2]
[401426335,1768203916562,-500.0,0.00012296,2]
[401426336,1768203916603,-500.0,0.00012296,2]
[401426337,1768203916642,-500.0,0.00012296,2]
[401426338,1768203916679,-500.0,0.00012296,2]
[401426339,1768203916905,-500.0,0.00012296,2]
[401426340,1768203916944,-500.0,0.00012296,2]
[401426341,1768203916981,-500.0,0.00012296,2]
[401426342,1768203917018,-500.0,0.00012296,2]
[401426343,1768203917054,-500.0,0.00012296,2]
[401426344,1768203917091,-500.0,0.00012296,2]
[401426345,1768203917128,-500.0,0.00012296,2]
[401426346,1768203917165,-500.0,0.00012296,2]
[401426347,1768203917204,-500.0,0.00012296,2]
[401426348,1768203917244,-500.0,0.00012296,2]
[401426349,1768203917728,-500.0,0.00012296,2]
[401426350,1768203917764,-500.0,0.00012296,2]
[401426351,1768203917799,-500.0,0.00012296,2]
[401426352,1768203917835,-500.0,0.00012296,2]
[401426353,1768203917869,-500.0,0.00012296,2]
[401426354,1768203917904,-500.0,0.00012296,2]
[401426355,1768203917941,-500.0,0.00012296,2]
[401426356,1768203917979,-500.0,0.00012296,2]
[401426357,1768203918014,-500.0,0.00012296,2]
[401426358,1768203918050,-500.0,0.00012296,2]
[401426359,1768203918260,-500.0,0.00012296,2]
[401426360,1768203918299,-500.0,0.00012296,2]
[401426361,1768203918337,-500.0,0.00012296,2]
[401426362,1768203918375,-500.0,0.00012296,2]
[401426363,1768203918411,-500.0,0.00012296,2]
[401426364,1768203918446,-500.0,0.00012296,2]
[401426365,1768203918481,-500.0,0.00012296,2]
[401426366,1768203918519,-500.0,0.00012296,2]
[401426367,1768203918556,-500.0,0.00012296,2]
[401426368,1768203918593,-500.0,0.00012296,2]
[401426369,1768203918776,-500.0,0.00012296,2]
[401426370,1768203918812,-500.0,0.00012296,2]
[401426371,1768203918847,-500.0,0.00012296,2]
[401426372,1768203918883,-500.0,0.00012296,2]
[401426373,1768203918913,-1000.02,0.00012296,2]
[401426374,1768203933047,-3999.97,0.00012296,2]
[401426375,1768203952383,-0.02,0.00012296,2]
[401426376,1768203952504,-0.04,0.00012296,2]
[401426377,1768203952558,-5895.18468375,0.00012296,2]
[401426378,1768203952673,-4104.74531625,0.00012296,2]
[401426379,1768203952729,-1790.5193675,0.00012296,2]
[401426380,1768203953117,-10000.01,0.00012296,2]
[401426381,1768203953279,-10000.01,0.00012296,2]
[401426382,1768203969075,-244.57,0.00011892,2]
[401426383,1768203969111,-300.0,0.00012295,2]
[401426384,1768203969415,-8910.87,0.00012296,2]
[401426385,1768203969440,-10000.01,0.00012296,2]
[401426386,1768203969468,-10000.01,0.00012296,2]
[401426387,1768203982458,-195.0,0.00012094,2]
[401426388,1768203982509,-9610.01,0.00012296,2]
[401426389,1768203982634,-10000.01,0.00012296,2]
[401426390,1768203982851,-10000.01,0.00012296,2]
[401426391,1768203983050,-1217.4106325,0.00012296,2]
[401426392,1768203983101,-7565.188735,0.00012296,2]
[401426393,1768203990664,-281.98730739,0.00012196,2]
[401426394,1768204012835,-24.62539687,0.00012196,2]
[401426395,1768204012865,-4157.3686186,0.00012197,2]
[401426396,1768204012905,-1636.02196906,0.00012197,2]
[401426397,1768204013006,-10000.01,0.00012296,2]
[401426398,1768204027573,-300.0,0.00012295,2]
[401426399,1768204027605,-300.0,0.00012296,2]
[401426400,1768204027637,-300.0,0.00012296,2]
[401426401,1768204027668,-442.931265,0.00012296,2]
[401426402,1768204027780,-7314.14747,0.00012296,2]
[401426403,1768204027907,-3343.07747,0.00012296,2]
[401426404,1768204027959,-3313.85506,0.00012296,2]
[401426405,1768204028359,-1236.57701284,0.00012296,2]
[401426406,1768204028399,-1236.57701284,0.00012296,2]
[401426407,1768204028437,-1236.57701284,0.00012296,2]
[401426408,1768204028478,-1236.57701284,0.00012296,2]
[401426409,1768204028612,-107.39389728,0.00012296,2]
[401426410,1768204029013,-1129.18311556,0.00012296,2]
[401426411,1768204029049,-1236.57701284,0.00012296,2]
[401426412,1768204029086,-1236.57701284,0.00012296,2]
[401426413,1768204029124,-1236.57701284,0.00012296,2]
[401426414,1768204029281,-1236.57701284,0.00012296,2]
[401426415,1768204029320,-1236.57701284,0.00012296,2]
[401426416,1768204029362,-1236.57701284,0.00012296,2]
[401426417,1768204029405,-1236.57701284,0.00012296,2]
[401426418,1768204029658,-1236.57701284,0.00012296,2]
[401426419,1768204029697,-1236.57701284,0.00012296,2]
[401426420,1768204029737,-1236.57701284,0.00012296,2]
[401426421,1768204029776,-499.84634723,0.00012296,2]
[401426422,1768204030278,-429.57558912,0.00012297,2]
[401426423,1768204030296,-1580.8552285,0.00012297,2]
[401426424,1768204031078,-11317.30904768,0.00012297,2]
[401426425,1768204036354,700.0,0.000128,4]
[401426426,1768204038453,1500.0,0.000129,4]
[401426427,1768204046914,-3313.3798653,0.00012297,2]
[401426428,1768204047098,-1158.71,0.00011947,2]
[401426429,1768204047108,-2214.5402694,0.00012297,2]
[401426430,1768204068371,-1158.71,0.00012297,2]
[401426431,1768204068408,-299.99,0.00012297,2]
[401426432,1768204068439,-3393.28,0.00012297,2]
[401426433,1768204068494,-296.05,0.00012297,2]
[401426434,1768204068742,-150.99,0.00012297,2]
[401426435,1768204068774,-4128.44,0.00012298,2]
[401426436,1768204068831,-1441.15,0.00012298,2]
[401426437,1768204068973,-1441.17,0.00012298,2]
[401426438,1768204069001,-7117.67,0.00012298,2]
[401426439,1768204093941,171.0,7.5e-07,2]
[401426440,1768204111437,-2902.4754,0.00012196,2]
[401426441,1768204111469,-270.55098355,0.00012299,2]
[401426442,1768204111500,-336.60813729,0.00012299,2]
[401426443,1768204111536,-300.0,0.00012306,2]
[401426444,1768204111567,-1180.74095832,0.00012306,2]
[401426445,1768204111674,-19.25904168,0.00012306,2]
[401426446,1768204111709,-711.75719117,0.00012307,2]
[401426447,1768204111783,-499.84634723,0.00012296,2]
[401426448,1768204111797,-8076.64927043,0.00012307,2]
[401426449,1768204138567,150.0,0.0001414,5]
[401426450,1768204150087,-300.0,0.00012195,2]
[401426451,1768204150113,-16079.38216725,0.00012196,2]
[401426452,1768204151114,-97242.24506993,0.00012196,2]
[401426453,1768204152804,-10000.01,0.00012196,2]
[401426454,1768204159087,-52779.8061,0.00012196,2]